Workbook

Sheet NSU
B1: Tiia-Mari Veikanmaa | E1: 5.12.2006
B2: SUPERPESIS | E2: RUNKOSARJA | I2: Kärkilyönnit (KL), pesänvälit | Q2: Runkosarja | U2: Ylempi loppusarja | Z2: Alempi loppusarja | AG2: Arvo-ottelut ja mitalit
B3: Vuosi | C3: Sija | D3: Seura | E3: OTT | F3: KUN | G3: LÖI | H3: TOI | I3: KL | J3: 0 > 1 | K3: 1 > 2 | L3: 2 > 3 | M3: 3 > k | N3: KL-% | P3: LÖI | Q3: TOI | R3: L+T | S3: KL | U3: OTT | V3: KUN | W3: LÖI | X3: TOI | Y3: KL | Z3: OTT | AA3: KUN | AB3: LÖI | AC3: TOI | AD3: KL | AE3: IL | AF3: LL | AG3: Halli | AH3: K | AI3: H | AJ3: P
B4: 2022 | D4: SiiPe | F4: ykköspesis
B5: 2023 | D5: SiiPe | F5: suomensarja
B6: 2024 | C6: 6. | D6: JoMa | E6: 24 | F6: 1 | G6: 0 | H6: 16 | I6: 58 | J6: 52 | K6: 2 | L6: 3 | M6: 1 | N6: 47.5 % | O6: 122 | U6: 4 | V6: 1 | W6: 0 | X6: 1 | Y6: 15
B7: Yhteensä | E7: =SUM(E4:E6) -> 24 | F7: =SUM(F4:F6) -> 1 | G7: =SUM(G4:G6) -> 0 | H7: =SUM(H4:H6) -> 16 | I7: =SUM(I4:I6) -> 58 | J7: =SUM(J4:J6) -> 52 | K7: =SUM(K4:K6) -> 2 | L7: =SUM(L4:L6) -> 3 | M7: =SUM(M4:M6) -> 1 | N7: =PRODUCT(I7/O7) -> 47.5 % | O7: =SUM(O4:O6) -> 122 | U7: =SUM(U4:U6) -> 4 | V7: =SUM(V4:V6) -> 1 | W7: =SUM(W4:W6) -> 0 | X7: =SUM(X4:X6) -> 1 | Y7: =SUM(Y4:Y6) -> 15 | Z7: =SUM(Z4:Z6) -> 0 | AA7: =SUM(AA4:AA6) -> 0 | AB7: =SUM(AB4:AB6) -> 0 | AC7: =SUM(AC4:AC6) -> 0 | AD7: =SUM(AD4:AD6) -> 0 | AE7: =SUM(AE4:AE6) -> 0 | AF7: =SUM(AF4:AF6) -> 0 | AG7: =SUM(AG4:AG6) -> 0 | AH7: =SUM(AH4:AH6) -> 0 | AI7: =SUM(AI4:AI6) -> 0 | AJ7: =SUM(AJ4:AJ6) -> 0
B8: Pesispörssi | D8: =SUM(F7:H7)+((I7-F7-G7)/3)+(E7/3)+(AE7*25)+(AF7*25)+(AG7*10)+(AH7*25)+(AI7*20)+(AJ7*15) -> 44.0
B10: URA SUPERISSA | E10: OTT | F10: KUN | G10: LÖI | H10: TOI | I10: KL | K10: ka/L | L10: ka/T | M10: ka/KL | N10: K - % | P10: ENSIMMÄISET
B11: Runkosarja | E11: =PRODUCT(E7) -> 24 | F11: =PRODUCT(F7) -> 1 | G11: =PRODUCT(G7) -> 0 | H11: =PRODUCT(H7) -> 16 | I11: =PRODUCT(I7) -> 58 | K11: =PRODUCT((F11+G11)/E11) -> 0.04 | L11: =PRODUCT(H11/E11) -> 0.67 | M11: =PRODUCT(I11/E11) -> 2.42 | N11: =PRODUCT(N7) -> 47.5 % | O11: =PRODUCT(O7) -> 122 | P11: Ottelu | R11: 09.05. 2024 JoMa - Tahko 2-0 (3-2, 14-1) | AC11: 1. ottelu | AF11: 17 v 5 kk 4 pv
B12: Ylempi loppusarja | E12: =PRODUCT(U7) -> 4 | F12: =PRODUCT(V7) -> 1 | G12: 0 | H12: 1 | I12: 15 | K12: =PRODUCT((F12+G12)/E12) -> 0.25 | L12: =PRODUCT(H12/E12) -> 0.25 | M12: =PRODUCT(I12/E12) -> 3.75 | N12: =PRODUCT(I12/O12) -> 68.2 % | O12: 22 | P12: Lyöty | R12: 21.05. 2024 Tahko - JoMa 1-0 (5-3, 3-3) | AC12: 5. ottelu | AF12: 17 v 5 kk 16 pv
B13: Alempi loppusarja | P13: Tuotu | R13: 09.05. 2024 JoMa - Tahko 2-0 (3-2, 14-1) | AC13: 1. ottelu | AF13: 17 v 5 kk 4 pv
B14: KAIKKI | E14: =SUM(E11:E13) -> 28 | F14: =SUM(F11:F13) -> 2 | G14: =SUM(G11:G13) -> 0 | H14: =SUM(H11:H13) -> 17 | I14: =SUM(I11:I13) -> 73 | K14: =PRODUCT((F14+G14)/E14) -> 0.07 | L14: =PRODUCT(H14/E14) -> 0.61 | M14: =PRODUCT(I14/E14) -> 2.61 | N14: =PRODUCT(I14/O14) -> 50.7 % | O14: =SUM(O11:O13) -> 144 | P14: Kunnari | R14: 21.05. 2024 Tahko - JoMa 1-0 (5-3, 3-3) | AC14: 5. ottelu | AF14: 17 v 5 kk 16 pv
B16: Seurat | D16: SiiPe = Siilinjärven Pesis (1987), kasvattajaseura
D17: JoMa = Joensuun Maila (1957)
